fUSD/lending_fUSD_20251108
["ID","MTS","AMOUNT","RATE_DAILY","PERIOD"]
[393418137,1762636244044,-17858.66655239,0.00016821,2]
[393418138,1762636244056,-7194.57254795,0.00016821,2]
[393418139,1762636244102,-1215.909,0.00016821,2]
[393418140,1762636244266,-109215.57243573,0.00016821,2]
[393418141,1762636244275,-559.0,0.00017865,2]
[393418142,1762636244287,-401475.42756426,0.00018,2]
[393418143,1762636244299,-342324.53206415,0.00018,2]
[393418144,1762636244310,-527.50353436,0.00018,2]
[393418146,1762636246206,-1000.4995,0.00018,2]
[393418147,1762636246481,-500.0,0.0001692,2]
[393418148,1762636246495,-149.87999794,0.0001692,2]
[393418149,1762636246537,-350.12000206,0.0001692,2]
[393418150,1762636246549,-500.0,0.0001692,2]
[393418151,1762636246558,-500.0,0.0001692,2]
[393418152,1762636246567,-500.0,0.0001692,2]
[393418153,1762636246577,-250.45547674,0.000179,2]
[393418154,1762636246587,-1702.3525212,0.00018,2]
[393418155,1762636246598,-967.1442304,0.00018,2]
[393418156,1762636246609,-724.8449955,0.00018,2]
[393418157,1762636246620,-640.45025,0.00018,2]
[393418158,1762636246631,-2141.18102479,0.00018,2]
[393418163,1762637042090,603.81,0.00013699,2]
[393418165,1762637081304,681.99,0.00016648,2]
[393418167,1762637212955,3394.45,0.000162,5]
[393418168,1762637269603,10000.01,0.00015,2]
[393418169,1762637269628,10000.01,0.00015,2]
[393418170,1762637269652,10000.01,0.00015,2]
[393418171,1762637269674,10000.01,0.00015,2]
[393418172,1762637269696,10000.01,0.00015,2]
[393418173,1762637269718,10000.01,0.00015,2]
[393418174,1762637269740,10000.01,0.00015,2]
[393418175,1762637269762,10000.01,0.00015,2]
[393418176,1762637269786,10000.01,0.00015,2]
[393418177,1762637269809,10000.01,0.00015,2]
[393418178,1762637269833,10000.01,0.00015,2]
[393418179,1762637269857,10000.01,0.00015,2]
[393418180,1762637269881,10000.01,0.00015,2]
[393418181,1762637269903,10000.01,0.00015,2]
[393418182,1762637269927,10000.01,0.00015,2]
[393418183,1762637269959,53593.25339041,0.00015,2]
[393418192,1762637432172,-1000.0,0.00016821,2]
[393418193,1762637432182,-250.0,0.00016828,2]
[393418194,1762637432192,-150.0,0.00016835,2]
[393418195,1762637432202,-1200.0,0.00016935,2]
[393418196,1762637432212,-1200.0,0.00016935,2]
[393418197,1762637432221,-300.0,0.00016935,2]
[393418198,1762637432231,-151.0,0.00016936,2]
[393418199,1762637432240,-151.0,0.00016936,2]
[393418200,1762637432250,-151.0,0.00016936,2]
[393418201,1762637432259,-151.0,0.00016936,2]
[393418202,1762637432269,-151.0,0.00016936,2]
[393418203,1762637432278,-151.0,0.00016936,2]
[393418204,1762637432288,-151.0,0.00016936,2]
[393418205,1762637432298,-151.0,0.00016936,2]
[393418206,1762637432308,-151.0,0.00016936,2]
[393418207,1762637432318,-151.0,0.00016936,2]
[393418208,1762637432328,-151.0,0.00016936,2]
[393418209,1762637432337,-151.0,0.00016936,2]
[393418210,1762637432347,-151.0,0.00016936,2]
[393418211,1762637432357,-151.0,0.00016936,2]
[393418212,1762637432367,-151.0,0.00016936,2]
[393418213,1762637432377,-173.00943357,0.00016936,2]
[393418214,1762637432391,-407.74894407,0.00016945,2]
[393418216,1762637432401,-500.0,0.00016945,2]
[393418218,1762637432411,-500.0,0.00016945,2]
[393418220,1762637432420,-500.0,0.00016945,2]
[393418222,1762637432430,-500.0,0.00016945,2]
[393418223,1762637432440,-500.0,0.00016945,2]
[393418224,1762637432450,-569.08359772,0.00016945,2]
[393418225,1762637432461,-341.00928863,0.00016945,2]
[393418226,1762637432471,-7875.03911701,0.00016946,2]
[393418227,1762637432484,-47788.05783849,0.00016946,2]
[393418228,1762637432496,-7937.8330445,0.00016946,2]
[393418229,1762637432506,-500.0,0.00016973,2]
[393418230,1762637432516,-503.00202269,0.00016973,2]
[393418231,1762637432526,-500.0,0.00016973,2]
[393418232,1762637432536,-500.0,0.00016973,2]
[393418234,1762637432545,-500.0,0.00016973,2]
[393418236,1762637432554,-500.0,0.00016973,2]
[393418237,1762637432563,-500.0,0.00016973,2]
[393418238,1762637432572,-500.0,0.00016973,2]
[393418239,1762637432581,-500.0,0.00016973,2]
[393418240,1762637432590,-500.0,0.00016973,2]
[393418241,1762637432601,-577.75360908,0.00016973,2]
[393418242,1762637432617,-168.0,0.00016985,2]
[393418243,1762637432626,-334.21,0.00016986,2]
[393418244,1762637432635,-200.0,0.00016992,2]
[393418245,1762637432644,-250.0,0.00017,2]
[393418246,1762637432653,-4692.29,0.00017183,2]
[393418247,1762637432662,-3583.0,0.00017219,2]
[393418248,1762637432671,-3583.0,0.00017308,2]
[393418249,1762637432681,-168.0,0.00017464,2]
[393418250,1762637432694,-168.0,0.00017465,2]
[393418251,1762637432703,-2000.0,0.000175,2]
[393418252,1762637432714,-20000.0,0.000175,2]
[393418253,1762637432723,-280.06002409,0.000175,2]
[393418254,1762637432738,-186.02268655,0.000175,2]
[393418255,1762637432747,-1000.0,0.00017521,2]
[393418256,1762637432757,-178.68991553,0.00017521,2]
[393418257,1762637432768,-408.22272,0.00017521,2]
[393418258,1762637438033,-259.13839387,0.00017521,2]
[393418259,1762637438045,-153.9489706,0.00017521,2]
[393418260,1762637438056,-8194.4545381,0.00017609,2]
[393418261,1762637438066,-150.0,0.00017707,2]
[393418262,1762637438076,-4491.51061304,0.00017728,2]
[393418263,1762637438088,-5508.47938696,0.00017728,2]
[393418264,1762637438098,-150.99,0.00017728,2]
[393418265,1762637438108,-459.0,0.00017742,2]
[393418266,1762637438117,-737.72176285,0.00017762,2]
[393418267,1762637438225,-867.27823715,0.00017762,2]
[393418268,1762637438234,-168.0,0.00017789,2]
[393418269,1762637438244,-55.38236253,0.000178,2]
[393418330,1762637440401,-163.7661796,0.000178,2]
[393418331,1762637440411,-153.83286178,0.000178,2]
[393418332,1762637440420,-221.62449195,0.000178,2]
[393418333,1762637440429,-153.83286176,0.00017813,2]
[393418334,1762637440438,-1605.0,0.00017813,2]
[393418335,1762637440447,-1997.37981,0.0001782,2]
[393418336,1762637440456,-153.83286176,0.00017825,2]
[393418338,1762637440466,-168.0,0.0001783,2]
[393418340,1762637440475,-153.83286176,0.00017838,2]
[393418341,1762637440485,-228.89807139,0.00017842,2]
[393418342,1762637440497,-71.83192861,0.00017842,2]
[393418343,1762637440506,-153.83286176,0.0001785,2]
[393418344,1762637440516,-153.83286176,0.00017863,2]
[393418346,1762637440526,-98.30459036,0.00017873,2]
[393418349,1762637443255,-401.69540964,0.00017873,2]
[393418350,1762637443433,-500.0,0.00017873,2]
[393418351,1762637443451,-500.0,0.00017873,2]
[393418352,1762637443461,-500.0,0.00017873,2]
[393418353,1762637443471,-500.0,0.00017873,2]
[393418354,1762637443480,-500.0,0.00017873,2]
[393418355,1762637443491,-500.0,0.00017873,2]
[393418356,1762637443500,-153.83286176,0.00017875,2]
[393418357,1762637443512,-153.83286176,0.00017888,2]
[393418358,1762637443523,-164.37270147,0.00017899,2]
[393418359,1762637443533,-352.15299567,0.00017899,2]
[393418360,1762637443543,-379933.96227545,0.000179,2]
[393418367,1762637446591,-1723.0954988,0.000179,2]
[393418368,1762637544791,188.26,0.00025613,120]
[393418369,1762638522575,200.0,0.000166,2]
[393418377,1762638632270,-2751.0,0.00016703,2]
[393418379,1762638632279,-620.55,0.00016761,2]
[393418381,1762638632288,-1200.0,0.00016791,2]
[393418382,1762638632298,-1200.0,0.00016791,2]
[393418383,1762638632308,-300.0,0.00016792,2]
[393418384,1762638632317,-11557.65799683,0.00016793,2]
[393418385,1762638632329,-11224.45200317,0.00016793,2]
[393418386,1762638632339,-1000.0,0.00016815,2]
[393418387,1762638632348,-161.64,0.00016976,2]
[393418388,1762638632358,-1402.0,0.00016999,2]
[393418389,1762638632367,-153.40612455,0.00017,2]
[393418390,1762638632377,-188.26,0.00017076,2]
[393418391,1762638632386,-1402.0,0.00017112,2]
[393418392,1762638632395,-1402.0,0.00017115,2]
[393418393,1762638632405,-1402.0,0.00017194,2]
[393418394,1762638632414,-1402.0,0.00017262,2]
[393418395,1762638632423,-500.0,0.00017315,2]
[393418396,1762638632432,-1402.0,0.00017474,2]
[393418397,1762638632441,-549.06301974,0.000176,2]
[393418398,1762638632450,-584.0,0.00017644,2]
[393418399,1762638632459,-317.2591,0.000177,2]
[393418400,1762638632469,-1882.8869,0.000177,2]
[393418401,1762638632479,-500.0,0.00017715,2]
[393418402,1762638632490,-2823.96790292,0.00017716,2]
[393418403,1762638632500,-227.86770318,0.00017716,2]
[393418404,1762638632509,-1690.87142966,0.00017716,2]
[393418405,1762638632519,-151.0,0.00017717,2]
[393418406,1762638632530,-151.0,0.00017717,2]
[393418407,1762638632539,-151.0,0.00017717,2]
[393418408,1762638632549,-246.20025685,0.00017717,2]
[393418409,1762638632558,-195.30543823,0.00017727,2]
[393418410,1762638632568,-500.0,0.00017727,2]
[393418411,1762638632578,-500.0,0.00017727,2]
[393418412,1762638632587,-412.99729968,0.00017727,2]
[393418413,1762638632596,-7633.48,0.00017728,2]
[393418414,1762638632606,-5265.27801675,0.00017728,2]
[393418415,1762638632644,-544.02,0.00017728,2]
[393418416,1762638632656,-4190.69198325,0.00017728,2]
[393418417,1762638632665,-1822.68,0.00017728,2]
[393418418,1762638632677,-9999.99,0.00017728,2]
[393418419,1762638632686,-421.38,0.00017728,2]
[393418420,1762638632696,-2375.37,0.00017728,2]
[393418421,1762638632707,-9999.99,0.00017728,2]
[393418422,1762638632716,-150.99,0.00017728,2]
[393418423,1762638632725,-508.76,0.00017728,2]
[393418424,1762638632735,-9999.99,0.00017728,2]
[393418425,1762638632745,-1818.29,0.00017728,2]
[393418427,1762638632754,-150.99,0.00017728,2]
[393418429,1762638632764,-231.33,0.00017731,2]
[393418431,1762638632774,-2823.96790291,0.00017736,2]
[393418433,1762638632784,-1690.87142959,0.00017736,2]
[393418435,1762638632795,-2823.96790291,0.00017757,2]
[393418437,1762638632804,-500.0,0.00017773,2]
[393418439,1762638632813,-500.0,0.00017773,2]
[393418441,1762638632823,-500.0,0.00017773,2]
[393418443,1762638632832,-500.0,0.00017773,2]
[393418445,1762638632841,-500.0,0.00017773,2]
[393418447,1762638632851,-542.73100948,0.00017773,2]
[393418450,1762638632861,-2823.96790291,0.00017777,2]
[393418453,1762638632871,-2823.96790291,0.00017798,2]
[393418456,1762638632882,-344.48973718,0.00017799,2]
[393418458,1762638632892,-1000.0,0.000178,2]
[393418460,1762638632901,-62404.34673635,0.000178,2]
[393418463,1762638632913,-711.46294668,0.000178,2]
[393418465,1762638632924,-1053.03409589,0.000178,2]
[393418467,1762638632935,-1741.4297148,0.000178,2]
[393418472,1762638632968,-1411.24810393,0.000178,2]
[393418474,1762638632980,-1653.8812408,0.000178,2]
[393418476,1762638632991,-357.41173712,0.000178,2]
[393418478,1762638633003,-21228.03193436,0.000178,2]
[393418480,1762638633014,-614.37390575,0.000178,2]
[393418483,1762638633027,-367.62244503,0.000178,2]
[393418488,1762638633068,-559.2491887,0.000178,2]
[393418569,1762638633953,999.0,0.000166,3]
[393418573,1762638638292,-766.68715685,0.00017757,2]
[393418574,1762638638349,-924.18427274,0.00017757,2]
[393418575,1762638638360,-299900.20712987,0.000178,2]
[393418576,1762638638371,-10001.0,0.000178,2]
[393418581,1762638640380,-684.31611847,0.000178,2]
[393418582,1762638640395,-618.463377,0.000178,2]
[393418583,1762638640424,-16693.92132525,0.000178,2]
[393418584,1762638640434,-1402.0,0.00017816,2]
[393418585,1762638640443,-2823.96790291,0.00017818,2]
[393418586,1762638640453,-1131.10627811,0.00017839,2]
[393418587,1762638640464,-1692.8616248,0.00017839,2]
[393418588,1762638640473,-1402.0,0.00017846,2]
[393418589,1762638640482,-856.3383752,0.00017856,2]
[393418590,1762638640494,-4610.045072,0.00017856,2]
[393418591,1762638640505,-3200.6731011,0.00017856,2]
[393418592,1762638640515,-727.1496785,0.00017859,2]
[393418593,1762638640526,-2096.81822441,0.00017859,2]
[393418594,1762638640535,-253.60916432,0.00017873,2]
[393418595,1762638640561,-246.39083568,0.00017873,2]
[393418596,1762638640572,-500.0,0.00017873,2]
[393418597,1762638640582,-820.155,0.00017875,2]
[393418598,1762638640592,-2823.96790291,0.0001788,2]
[393418600,1762638640602,-5000.0,0.000179,2]
[393418602,1762638640611,-1319.11709531,0.000179,2]
[393418603,1762638640621,-480.46725026,0.000179,2]
[393418605,1762638640631,-2823.96790291,0.000179,2]
[393418606,1762638640640,-1664.48317,0.000179,2]
[393418607,1762638640651,-1834.95673388,0.000179,2]
[393418609,1762638640660,-270.88337036,0.000179,3]
[393418610,1762638640670,-493.7307187,0.000179,2]
[393418612,1762638640680,-161.64,0.00017919,2]
[393418613,1762638640689,-500.0,0.00017973,2]
[393418614,1762638640699,-500.0,0.00017973,2]
[393418615,1762638640710,-500.0,0.00017973,2]
[393418616,1762638640720,-500.0,0.00017973,2]
[393418617,1762638640730,-500.0,0.00017973,2]
[393418618,1762638640741,-505.85898911,0.00017973,2]
[393418619,1762638640751,-500.0,0.00017973,2]
[393418620,1762638640760,-500.0,0.00017973,2]
[393418621,1762638640770,-500.59586088,0.00017973,2]
[393418622,1762638640779,-500.0,0.00017973,2]
[393418623,1762638640789,-574.0,0.00017989,2]
[393418624,1762638640799,-159.945,0.00017989,2]
[393418625,1762638640808,-607.0,0.00017989,2]
[393418626,1762638640818,-1316.0,0.00017989,2]
[393418627,1762638640827,-3424.0,0.00017989,2]
[393418628,1762638640837,-820.0,0.00017989,2]
[393418629,1762638640847,-1596.0,0.00017989,2]
[393418630,1762638640856,-1273.0,0.00017989,2]
[393418631,1762638640866,-812.0,0.00017989,2]
[393418632,1762638640875,-5244.53441853,0.00017989,2]
[393418648,1762638644797,-494.79704698,0.00017777,2]
[393418649,1762638644855,-1196.07438261,0.00017777,2]
[393418650,1762638644865,-1232.46558147,0.00017989,2]
[393418651,1762638644875,-6660.0,0.00017989,2]
[393418652,1762638644884,-2142.0,0.00017989,2]
[393418653,1762638644893,-150.0,0.00017999,2]
[393418654,1762638644903,-150.0,0.00017999,2]
[393418655,1762638644912,-290.50271738,0.00017999,2]
[393418656,1762638644922,-150.0,0.00017999,2]
[393418657,1762638644932,-150.0,0.00017999,2]
[393418658,1762638644942,-150.0,0.00017999,2]
[393418659,1762638644951,-1552.0,0.00018,2]
[393418660,1762638644961,-555418.13807444,0.00018,2]
[393418661,1762638645078,-358.24238727,0.00018,2]
[393418662,1762638645090,-398.55922036,0.00018,2]
[393418663,1762638645101,-386284.26102046,0.00018,2]
[393418669,1762638646397,-150.0,0.00017999,2]
[393418670,1762638646408,-3066.8481094,0.00018,2]
[393418671,1762638646419,-976.095,0.00018,2]
[393418672,1762638646781,-1690.87142959,0.00017798,2]
[393418673,1762638646790,-17204.41897404,0.00018,2]
[393418676,1762638757825,166.66,0.00016237,2]
[393418677,1762638758298,166.66,0.00016579,2]
[393418680,1762639177131,150.0,0.00016699,2]
[393418681,1762639346086,1707.53,0.00016438,2]
[393418682,1762639471037,-168.0,0.00016861,2]
[393418683,1762639471060,-39.24434178,0.00016864,2]
[393418684,1762639476677,-260.75565822,0.00016864,2]
[393418685,1762639476705,-104.27976637,0.00016868,2]
[393418686,1762639515978,-145.72023363,0.00016868,2]
[393418687,1762639516002,-35.3558207,0.00016894,2]
[393418688,1762639519579,-217.58970178,0.00016894,2]
[393418689,1762639575985,-168.0,0.00016713,2]
[393418690,1762639576007,-47.05447752,0.00016894,2]
[393418691,1762639576032,-42.75771672,0.00016921,2]
[393418692,1762639580902,-123.90228328,0.00016921,2]
[393418693,1762639580923,-112.91859315,0.00017,2]
[393418694,1762639596701,3000.0,0.00030137,120]
[393418695,1762639596758,200.0,0.00016684,2]
[393418697,1762639666561,-137.08140685,0.00017,2]
[393418698,1762639666586,-13.91859315,0.00017157,2]
[393418699,1762639668800,-151.0,0.00017157,2]
[393418700,1762639722356,610.62,0.00013699,2]
[393418701,1762639724183,-3.08140685,0.00017157,2]
[393418702,1762639724211,-168.0,0.00017198,2]
[393418703,1762639724237,-94.51589687,0.00017262,2]
[393418704,1762639726124,-72.14410313,0.00017262,2]
[393418705,1762639726144,-116.69792517,0.00017263,2]
[393418707,1762639755961,-84.88689322,0.00017263,2]
[393418708,1762639755988,-70.94815942,0.00017277,2]
[393418709,1762639758809,-317.50628325,0.00017277,2]
[393418710,1762639764906,-404.78074968,0.00017277,2]
[393418711,1762639766356,-300.0,0.00017277,2]
[393418712,1762639786002,-151.0,0.00017277,2]
[393418713,1762639788653,-185.93676109,0.00017277,2]
[393418714,1762639791005,-153.2365562,0.00017277,2]
[393418715,1762639798551,-226.23568842,0.00017277,2]
[393418716,1762639815989,-418.89352201,0.00017277,2]
[393418717,1762639821459,-166.66,0.00017277,2]
[393418718,1762639823263,-401.99833089,0.00017277,2]
[393418719,1762639830031,-420.5065356,0.00017277,2]
[393418723,1762639831440,-397.85741344,0.00017277,2]
[393418724,1762639831450,-168.0,0.00017392,2]
[393418725,1762639831460,-600.0,0.000174,6]
[393418726,1762639831470,-300.0,0.000174,6]
[393418728,1762639831479,-166.66,0.00017429,2]
[393418729,1762639831489,-168.0,0.00017463,2]
[393418730,1762639831499,-300.0,0.00017499,2]
[393418731,1762639831508,-1200.0,0.00017499,2]
[393418732,1762639831518,-1000.0,0.000175,2]
[393418733,1762639831528,-1200.0,0.000175,6]
[393418734,1762639831538,-600.0,0.000175,6]
[393418735,1762639831547,-226.0,0.00017561,2]
[393418736,1762639831557,-300.0,0.00017561,2]
[393418737,1762639831567,-300.0,0.00017561,2]
[393418738,1762639831577,-168.0,0.00017561,2]
[393418739,1762639831587,-151.0,0.00017562,2]
[393418740,1762639831597,-151.0,0.00017562,2]
[393418741,1762639831607,-151.0,0.00017562,2]
[393418742,1762639831617,-151.0,0.00017562,2]
[393418743,1762639831627,-151.0,0.00017562,2]
[393418744,1762639831636,-151.0,0.00017562,2]
[393418745,1762639831647,-151.0,0.00017562,2]
[393418746,1762639831657,-8736.73361848,0.00017573,2]
[393418747,1762639831667,-205.08093279,0.00017573,2]
[393418748,1762639831677,-954.24,0.000176,2]
[393418749,1762639831687,-698.81,0.000176,2]
[393418750,1762639831696,-577.36,0.000176,2]
[393418751,1762639831707,-1900.0,0.000176,6]
[393418752,1762639831716,-900.0,0.000176,6]
[393418753,1762639831725,-166.66,0.00017604,2]
[393418755,1762639831735,-8736.7336184,0.00017609,2]
[393418756,1762639831745,-151.0,0.00017625,2]
[393418757,1762639831755,-151.0,0.00017625,2]
[393418758,1762639831764,-241.14281603,0.00017627,2]
[393418759,1762639831774,-156.99969997,0.00017627,2]
[393418760,1762639831785,-168.79997122,0.00017627,2]
[393418761,1762639831796,-150.0,0.00017627,2]
[393418763,1762639831805,-178.01247187,0.00017627,2]
[393418764,1762639831815,-300.0,0.00017627,2]
[393418765,1762639831826,-336.93676109,0.00017627,2]
[393418766,1762639831836,-379.47224462,0.00017627,2]
[393418767,1762639831846,-500.0,0.00017627,2]
[393418768,1762639831856,-460.0,0.00017627,2]
[393418769,1762639831867,-500.0,0.00017627,2]
[393418770,1762639831876,-500.0,0.00017627,2]
[393418771,1762639831886,-505.64838895,0.00017627,2]
[393418773,1762639831895,-377.94170616,0.00017627,2]
[393418774,1762639831905,-500.0,0.00017627,2]
[393418775,1762639831914,-500.0,0.00017627,2]
[393418776,1762639831923,-460.0,0.00017627,2]
[393418777,1762639831932,-8081.89184972,0.00017628,2]
[393418778,1762639831945,-45283.97114628,0.00017628,2]
[393418779,1762639831956,-66611.28791625,0.00017628,2]
[393418780,1762639831967,-80500.64719156,0.00017628,2]
[393418781,1762639831986,-400.55018393,0.00017628,2]
[393418782,1762639832010,-5541.31411856,0.00017628,2]
[393418783,1762639832044,-1015.72168011,0.00017628,2]
[393418784,1762639832056,-1344.40085279,0.00017628,2]
[393418819,1762639839605,-395.92311807,0.00017628,2]
[393418821,1762639840376,-1.7e-07,0.00017628,2]
[393418822,1762639840387,-1746.89180138,0.00017628,2]
[393418826,1762639843118,-209077.40014118,0.00017628,2]
[393418827,1762639843129,-8736.7336184,0.00017646,2]
[393418828,1762639843138,-500.0,0.00017673,2]
[393418829,1762639843149,-500.0,0.00017673,2]
[393418830,1762639843159,-625.66484085,0.00017673,2]
[393418831,1762639843169,-500.0,0.00017673,2]
[393418832,1762639843178,-8736.7336184,0.00017682,2]
[393418833,1762639843189,-2500.0,0.000177,6]
[393418834,1762639843199,-698.81,0.000177,2]
[393418835,1762639843208,-1200.0,0.000177,6]
[393418836,1762639843219,-8736.7336184,0.00017718,2]
[393418837,1762639843228,-8736.7336184,0.00017755,2]
[393418838,1762639843238,-8736.7336184,0.00017791,2]
[393418839,1762639843247,-3200.0,0.000178,6]
[393418840,1762639843257,-1600.0,0.000178,6]
[393418841,1762639843266,-656.124,0.0001782,2]
[393418842,1762639843276,-8736.7336184,0.00017827,2]
[393418843,1762639843286,-2236.4078218,0.00017856,2]
[393418844,1762639843297,-8736.7336184,0.00017864,2]
[393418845,1762639843306,-1154.51800576,0.000179,2]
[393418846,1762639843315,-5000.0,0.000179,2]
[393418847,1762639843324,-320.31150018,0.000179,2]
[393418848,1762639843333,-600.0,0.000179,6]
[393418849,1762639843342,-300.0,0.000179,6]
[393418850,1762639843351,-236.27123939,0.000179,3]
[393418851,1762639843361,-1223.30448926,0.000179,2]
[393418852,1762639843371,-8736.7336184,0.000179,2]
[393418853,1762639843380,-224.45678558,0.000179,2]
[393418854,1762639843389,-500.0,0.00017918,2]
[393418855,1762639843398,-2142.0,0.00017928,2]
[393418856,1762639843407,-593.862,0.00017928,2]
[393418857,1762639843416,-166.66,0.00017946,2]
[393418858,1762639843425,-500.0,0.00017973,2]
[393418859,1762639843434,-235.33606138,0.00017973,2]
[393418860,1762639843443,-386.48130404,0.00017973,2]
[393418861,1762639843452,-501.39454671,0.00017973,2]
[393418862,1762639843461,-500.0,0.00017973,2]
[393418863,1762639843472,-2000.0,0.0001799,2]
[393418864,1762639843481,-200.66885732,0.0001799,2]
[393418865,1762639843490,-2365.3890525,0.00017997,2]
[393418866,1762639843499,-3881.7199681,0.00017997,2]
[393418867,1762639843509,-150.0,0.00017999,2]
[393418868,1762639843518,-150.0,0.00017999,2]
[393418869,1762639843527,-150.0,0.00017999,2]
[393418870,1762639843536,-500.0,0.00017999,2]
[393418871,1762639843546,-500.0,0.00017999,2]
[393418872,1762639843555,-150.0,0.00017999,2]
[393418873,1762639843566,-150.0,0.00017999,2]
[393418874,1762639843575,-150.0,0.00017999,2]
[393418875,1762639843584,-150.0,0.00017999,2]
[393418876,1762639843593,-283.616,0.00017999,2]
[393418877,1762639843603,-150.0,0.00017999,2]
[393418878,1762639843613,-1316.0,0.00017999,2]
[393418879,1762639843622,-3424.0,0.00017999,2]
[393418880,1762639843632,-607.0,0.00017999,2]
[393418881,1762639843643,-574.0,0.00017999,2]
[393418882,1762639843652,-1596.0,0.00017999,2]
[393418883,1762639843662,-820.0,0.00017999,2]
[393418884,1762639843671,-812.0,0.00017999,2]
[393418885,1762639843680,-1273.0,0.00017999,2]
[393418886,1762639843689,-1249.0,0.00018,2]
[393418887,1762639843698,-63945.93923293,0.00018,2]
[393418890,1762639845711,-904.0,0.00017963,2]
[393418891,1762639845720,-102.2108982,0.00018,2]
[393418892,1762639845769,-818.14211924,0.00018,2]
[393418982,1762639921583,-188.54130841,0.00017528,2]
[393418983,1762639925737,-167.14496293,0.00017528,2]
[393418984,1762639927787,-646.58121197,0.00017528,2]
[393418985,1762639932980,-243.8249974,0.00017528,2]
[393418986,1762639935157,-279.58333085,0.00017528,2]
[393418987,1762639951675,-151.0,0.000174,6]
[393418988,1762639957300,-198.41424293,0.000174,6]
[393418989,1762639959354,-50.58575707,0.000174,6]
[393418990,1762639959376,-144.38366353,0.000175,6]
[393418991,1762639960832,-303.41188575,0.000175,6]
[393418992,1762639965579,-352.20445072,0.000175,6]
[393418993,1762639965601,-38.29595465,0.00017527,2]
[393418994,1762639967665,-163.44697346,0.00017527,2]
[393418995,1762639972829,-192.95710225,0.00017527,2]
[393418996,1762639972850,-119.02303059,0.00017527,2]
[393418997,1762639975419,-51.84194361,0.00017527,2]
[393418998,1762639975441,-100.82316134,0.00017527,2]
[393418999,1762639980624,-70.55375701,0.00017527,2]
[393419000,1762639980648,-110.92179806,0.00017528,2]
[393419001,1762639982402,-245.96501431,0.00017527,2]
[393419002,1762639988818,-316.14544598,0.00017527,2]
[393419003,1762639990355,-116.14895843,0.00017527,2]
[393419004,1762639990377,-54.03498569,0.00017527,2]
[393419005,1762639990400,-382.30782464,0.00017528,2]
[393419006,1762640011011,-384.44191324,0.00017528,2]
[393419007,1762640012490,-164.75012398,0.00017528,2]
[393419008,1762640016160,-327.06857838,0.00017528,2]
[393419009,1762640021127,-235.86870532,0.00017528,2]
[393419010,1762640023137,-279.30367164,0.00017528,2]
[393419011,1762640025863,-300.0,0.00017528,2]
[393419012,1762640028731,228.32,8.705e-05,2]
[393419013,1762640028775,-324.26015561,0.00017528,2]
[393419014,1762640028957,228.32,9.145e-05,2]
[393419015,1762640029158,228.32,9.585e-05,2]
[393419016,1762640029370,228.32,0.00010026,2]
[393419017,1762640029571,228.32,0.00010466,2]
[393419018,1762640029760,228.32,0.00010906,2]
[393419019,1762640029962,228.32,0.00011346,2]
[393419020,1762640030373,228.32,0.00011786,2]
[393419021,1762640030588,228.32,0.00012227,2]
[393419022,1762640030799,228.32,0.00012667,2]
[393419023,1762640031344,228.32,0.00013107,2]
[393419024,1762640031394,228.32,0.00013547,2]
[393419025,1762640031444,228.32,0.00013987,2]
[393419026,1762640031610,228.32,0.00014428,2]
[393419027,1762640031808,228.32,0.00014868,2]
[393419028,1762640032004,228.32,0.00015308,2]